bitfinex/quotes_BTCUSD_20250620
["timestamp","ask_amount","ask_price","bid_price","bid_amount"]
[1750408191805,0.41808825,106490.0,106480.0,6.67292588]
[1750408192253,0.40869814,106490.0,106480.0,6.67292588]
[1750408192490,0.41808825,106490.0,106480.0,6.67292588]
[1750408192728,0.40869814,106490.0,106480.0,6.67292588]
[1750408192945,0.40869814,106490.0,106480.0,6.51772588]
[1750408193175,0.40869814,106490.0,106480.0,6.67292588]
[1750408193850,0.38991837,106490.0,106480.0,6.67292588]
[1750408194056,0.070097,106490.0,106480.0,6.67292588]
[1750408194265,0.38991837,106490.0,106480.0,6.67292588]
[1750408194765,0.070097,106490.0,106480.0,6.67292588]
[1750408194984,0.38991837,106490.0,106480.0,6.67292588]
[1750408195416,0.029217,106490.0,106480.0,6.67292588]
[1750408195643,0.029217,106490.0,106480.0,6.9328171]
[1750408195862,0.029217,106490.0,106480.0,7.20043899]
[1750408196289,0.001,106490.0,106480.0,7.20043899]
[1750408196499,0.001,106490.0,106480.0,6.88061762]
[1750408196723,0.001,106490.0,106480.0,7.20043899]
[1750408197591,0.02825374,106500.0,106490.0,0.27928165]
[1750408197813,0.02825374,106500.0,106490.0,0.39169446]
[1750408198023,0.02825374,106500.0,106490.0,0.54685446]
[1750408198443,0.02825374,106500.0,106490.0,0.5297115]
[1750408198652,0.02825374,106500.0,106490.0,0.45159642]
[1750408199089,0.03325374,106500.0,106490.0,0.45159642]
[1750408199298,0.03625374,106500.0,106490.0,0.45159642]
[1750408200373,0.03625374,106500.0,106490.0,0.45161054]
[1750408200845,0.35607511,106500.0,106490.0,0.29645054]
[1750408201060,0.35607511,106500.0,106490.0,0.45161054]
[1750408201270,0.03625374,106500.0,106490.0,0.82961242]
[1750408201508,0.03625374,106500.0,106490.0,0.67445242]
[1750408201746,0.00804774,106500.0,106490.0,0.92489135]
[1750408201990,0.04088,106530.0,106520.0,0.27852082]
[1750408202235,5e-05,106540.0,106530.0,0.27850055]
[1750408202457,0.02825,106540.0,106530.0,0.29566804]
[1750408202910,0.02825,106540.0,106530.0,0.45082804]
[1750408203556,0.02825,106540.0,106530.0,0.45130638]
[1750408203979,0.02825,106540.0,106530.0,0.45130566]
[1750408204712,0.02825,106540.0,106530.0,0.65444801]
[1750408204936,5e-05,106540.0,106530.0,0.65444801]
[1750408205462,5e-05,106540.0,106530.0,0.66144801]
[1750408205714,0.028245,106540.0,106530.0,0.66444801]
[1750408205909,5e-05,106540.0,106530.0,0.66444801]
[1750408206327,5e-05,106540.0,106530.0,0.66144801]
[1750408206531,5e-05,106540.0,106530.0,0.66244801]
[1750408207674,0.61605894,106540.0,106530.0,0.08124511]
[1750408207902,6.09311226,106540.0,106530.0,0.00147834]
[1750408208126,6.15765311,106540.0,106530.0,0.15855834]
[1750408208345,6.15765311,106540.0,106530.0,0.15555834]
[1750408208813,6.15965311,106540.0,106530.0,0.15555834]
[1750408209043,6.15865311,106540.0,106530.0,0.00047834]
[1750408209274,6.15765311,106540.0,106530.0,0.15555834]
[1750408209769,6.15765311,106540.0,106530.0,0.15755834]
[1750408209985,6.15765311,106540.0,106530.0,0.00247834]
[1750408210198,6.15765311,106540.0,106530.0,0.15755834]
[1750408210414,6.15765311,106540.0,106530.0,0.16155834]
[1750408211430,6.65585311,106540.0,106530.0,0.16155834]
[1750408212098,6.71585311,106540.0,106530.0,0.16155834]
[1750408213351,6.74405811,106540.0,106530.0,0.00647834]
[1750408214582,6.73365811,106540.0,106530.0,0.00647834]
[1750408214790,6.73481811,106540.0,106530.0,0.00647834]
[1750408218188,6.84761811,106540.0,106530.0,0.00647834]
[1750408218609,6.84138756,106540.0,106530.0,0.00647834]
[1750408218823,6.80418756,106540.0,106530.0,0.00647834]
[1750408219037,7.01936756,106540.0,106530.0,0.00647834]
[1750408220655,6.52116756,106540.0,106530.0,0.00647834]
[1750408220867,5.99670053,106500.0,106490.0,0.05792166]
[1750408221081,6.14728031,106500.0,106490.0,8.975e-05]
[1750408221291,6.14844031,106500.0,106490.0,8.975e-05]
[1750408221495,6.17549531,106500.0,106490.0,8.975e-05]
[1750408221707,6.18536349,106500.0,106490.0,8.975e-05]
[1750408222327,6.23652349,106500.0,106490.0,8.975e-05]
[1750408222755,6.23652349,106500.0,106490.0,0.00208975]
[1750408223381,6.23652349,106500.0,106490.0,0.00408975]
[1750408223595,6.25589885,106500.0,106490.0,0.00408975]
[1750408223811,6.42653885,106500.0,106490.0,0.00408975]
[1750408224020,6.47653918,106500.0,106490.0,0.00408975]
[1750408224253,6.47753918,106500.0,106490.0,0.00208975]
[1750408224680,6.47953918,106500.0,106490.0,8.975e-05]
[1750408225091,6.48053918,106500.0,106490.0,8.975e-05]
[1750408226132,6.5049234,106500.0,106490.0,8.975e-05]
[1750408226346,6.50491729,106500.0,106490.0,8.975e-05]
[1750408226562,6.48053307,106500.0,106490.0,8.975e-05]
[1750408227005,6.08040468,106500.0,106490.0,8.975e-05]
[1750408227227,6.48057307,106500.0,106490.0,8.975e-05]
[1750408228104,6.48056686,106500.0,106490.0,8.975e-05]
[1750408228977,0.68014228,106490.0,106480.0,6.01457653]
[1750408229188,6.78848136,106490.0,106480.0,5.26337956]
[1750408229399,6.78848136,106490.0,106480.0,5.07337956]
[1750408229638,6.7894814,106490.0,106480.0,5.03967957]
[1750408229861,6.01360884,106490.0,106480.0,5.03967957]
[1750408230084,6.81386562,106490.0,106480.0,5.03967957]
[1750408230286,6.68308485,106490.0,106480.0,5.03967957]
[1750408230495,6.8322414,106490.0,106480.0,5.04267957]
[1750408230706,6.8322414,106490.0,106480.0,5.03967957]
[1750408231140,6.8352414,106490.0,106480.0,3.48021957]
[1750408231375,6.85954063,106490.0,106480.0,1.50311423]
[1750408231578,6.90892485,106490.0,106480.0,1.31938269]
[1750408231792,6.6624014,106490.0,106480.0,1.27138475]
[1750408232009,6.8607214,106490.0,106480.0,1.05224532]
[1750408232231,6.91240485,106490.0,106480.0,0.99559863]
[1750408232488,6.91240485,106490.0,106480.0,0.96271596]
[1750408232670,6.90940485,106490.0,106480.0,0.7281657]
[1750408232880,6.81010562,106490.0,106480.0,0.7255273]
[1750408233095,6.71108485,106490.0,106480.0,0.6660273]
[1750408233301,6.6594014,106490.0,106480.0,0.6498473]
[1750408233523,6.6594014,106490.0,106460.0,0.0001]
[1750408233524,0.6611712,106470.0,106460.0,0.0001]
[1750408233738,0.6611712,106470.0,106460.0,0.00018999]
[1750408233739,6.37214193,106470.0,106460.0,0.00018999]
[1750408234583,6.38494193,106470.0,106460.0,0.00018999]
[1750408234800,6.38594193,106470.0,106460.0,0.00018999]
[1750408235289,6.38494193,106470.0,106460.0,0.00018999]
[1750408235503,6.38694193,106470.0,106460.0,0.00018999]
[1750408235708,6.21630193,106470.0,106460.0,0.00018999]
[1750408235925,0.25666917,106450.0,106440.0,3.363197]
[1750408236139,6.59141734,106450.0,106440.0,3.36367468]
[1750408236574,6.63277734,106450.0,106440.0,3.36367468]
[1750408236782,6.43221734,106450.0,106440.0,3.36367468]
[1750408236993,6.63273734,106450.0,106440.0,3.42777468]
[1750408237203,6.46045034,106450.0,106440.0,3.42977468]
[1750408237636,6.66225034,106450.0,106440.0,3.36567468]
[1750408238254,6.67505034,106450.0,106440.0,3.36567468]
[1750408238920,6.67505034,106450.0,106440.0,3.36549981]
[1750408239139,6.70260377,106450.0,106440.0,3.36549981]
[1750408239558,6.30447538,106450.0,106440.0,3.36549981]
[1750408239766,6.70460377,106450.0,106440.0,3.36549981]
[1750408240214,6.70460377,106450.0,106440.0,3.36349981]
[1750408240630,6.69180377,106450.0,106440.0,3.36349981]
[1750408240841,6.13351538,106450.0,106440.0,3.36349981]
[1750408241059,6.49116377,106450.0,106440.0,3.36349981]
[1750408241278,6.69264377,106450.0,106440.0,3.36349981]
[1750408241499,6.70544377,106450.0,106440.0,3.36349981]
[1750408241704,6.69264377,106450.0,106440.0,3.36349981]
[1750408242389,6.70544377,106450.0,106440.0,3.33595611]
[1750408242604,6.71197356,106450.0,106440.0,3.33595611]
[1750408242867,6.13351538,106450.0,106440.0,3.33595611]
[1750408243076,6.07533453,106450.0,106440.0,3.39725611]
[1750408243280,6.27741453,106450.0,106440.0,3.39725611]
[1750408243489,6.29195538,106450.0,106440.0,3.39725611]
[1750408243701,6.08987538,106450.0,106440.0,3.39725611]
[1750408243908,6.29203538,106450.0,106440.0,3.39725611]
[1750408244344,6.29199538,106450.0,106440.0,3.39725611]
[1750408244771,6.69212377,106450.0,106440.0,3.39725611]
[1750408246136,6.29199538,106450.0,106440.0,3.39725611]
[1750408246376,6.64208377,106450.0,106440.0,3.39725611]
[1750408246622,6.69208377,106450.0,106440.0,3.39725611]
[1750408247070,5.69987538,106450.0,106440.0,3.39725611]
[1750408247286,5.74235538,106450.0,106440.0,3.39725611]
[1750408247498,5.90271538,106450.0,106440.0,3.39725611]
[1750408247711,6.03235538,106450.0,106440.0,3.39725611]
[1750408248350,6.19271538,106450.0,106440.0,3.39725611]
[1750408249036,6.19071538,106450.0,106440.0,3.39725611]
[1750408249253,6.03035538,106450.0,106440.0,3.39725611]
[1750408249916,6.03035538,106450.0,106440.0,3.40034611]
[1750408250353,6.03227538,106450.0,106440.0,3.40034611]
[1750408251054,5.98787538,106450.0,106440.0,3.40034611]
[1750408251265,6.03227538,106450.0,106440.0,3.40034611]
[1750408251888,6.01773453,106450.0,106440.0,3.40034611]
[1750408252120,6.01773453,106450.0,106440.0,3.56178611]
[1750408252329,5.303833,106450.0,106440.0,3.77786912]
[1750408252561,0.298233,106450.0,106440.0,3.61642912]
[1750408252794,0.32641391,106450.0,106440.0,3.78722355]
[1750408252998,0.31702001,106450.0,106440.0,3.78722355]
[1750408253207,0.32641391,106450.0,106440.0,3.78522355]
[1750408253416,0.73593638,106450.0,106440.0,3.77582921]
[1750408253629,5.36702054,106450.0,106440.0,3.76100017]
[1750408253848,5.57368944,106450.0,106440.0,3.77039478]
[1750408254066,5.57368944,106450.0,106440.0,3.7645893]
[1750408254269,5.58308352,106450.0,106440.0,3.7645893]
[1750408254664,5.56429651,106450.0,106440.0,3.75519478]
[1750408254898,5.56429651,106450.0,106440.0,3.78185889]
[1750408255135,5.56429651,106450.0,106440.0,3.78285869]
[1750408255559,5.56429651,106450.0,106440.0,3.77346417]
[1750408255807,5.54550871,106450.0,106440.0,3.74680017]
[1750408256013,5.53611463,106450.0,106440.0,3.73740539]
[1750408256223,5.53611463,106450.0,106440.0,3.74680017]
[1750408256438,5.54550853,106450.0,106440.0,3.76558938]
[1750408256653,5.36702054,106450.0,106440.0,3.77498372]
[1750408256862,5.3858079,106450.0,106440.0,3.77498381]
[1750408257099,5.58308361,106450.0,106440.0,3.77498381]
[1750408257309,5.58308361,106450.0,106440.0,3.74671991]
[1750408257310,5.67836254,106450.0,106440.0,3.74671991]
[1750408257524,5.45290539,106450.0,106440.0,3.77490346]
[1750408257751,5.47169293,106450.0,106440.0,3.77490346]
[1750408257961,5.31322646,106450.0,106440.0,3.77490346]
[1750408258171,0.253833,106450.0,106440.0,3.86282175]
[1750408258416,0.69836139,106450.0,106440.0,3.86282175]
[1750408259257,0.70775467,106450.0,106440.0,3.86282175]
[1750408259465,0.69836139,106450.0,106440.0,3.77490346]
[1750408259682,0.70775476,106450.0,106440.0,3.77490346]
[1750408259892,0.66335476,106450.0,106440.0,3.77490346]
[1750408260100,0.69836139,106450.0,106440.0,3.77490346]
[1750408260332,0.70775476,106450.0,106440.0,3.77490346]
[1750408260539,0.69836139,106450.0,106440.0,3.87017331]
[1750408260746,0.70775476,106450.0,106440.0,3.87017331]
[1750408260967,0.70775476,106450.0,106440.0,3.77490346]
[1750408261176,0.7171484,106450.0,106440.0,3.77490346]
[1750408261617,0.7265023,106450.0,106440.0,3.77466346]
[1750408261830,0.7171084,106450.0,106440.0,3.77466346]
[1750408262257,0.72650221,106450.0,106440.0,3.77466346]
[1750408262468,0.91438384,106450.0,106440.0,3.58544017]
[1750408262679,5.96438455,106450.0,106440.0,3.73708539]
[1750408262896,5.96438455,106450.0,106440.0,3.74648026]
[1750408263106,5.95499091,106450.0,106440.0,3.74648026]
[1750408263563,5.95499091,106450.0,106440.0,3.75587495]
[1750408264269,5.74832139,106450.0,106440.0,3.76530921]
[1750408264497,5.7671084,106450.0,106440.0,3.76530921]
[1750408264764,5.303833,106450.0,106440.0,3.76530921]
[1750408265007,0.298193,106450.0,106440.0,3.83715228]
[1750408265229,0.298193,106450.0,106440.0,3.76522921]
[1750408266733,0.69832139,106450.0,106440.0,3.76522921]
[1750408267006,0.298193,106450.0,106440.0,3.76522921]
[1750408267283,0.69832139,106450.0,106440.0,3.76522921]
[1750408267533,0.69832139,106450.0,106440.0,3.69949906]
[1750408267779,0.92377827,106450.0,106440.0,3.75571495]
[1750408268065,0.72650247,106450.0,106440.0,3.7745039]
[1750408268266,0.72650247,106450.0,106440.0,3.6136239]
[1750408268508,5.78589646,106450.0,106440.0,3.7733739]
[1750408268748,5.97377809,106450.0,106440.0,3.76397956]
[1750408268991,5.97377809,106450.0,106440.0,3.77337399]
[1750408269236,5.97377809,106450.0,106440.0,3.76397956]
[1750408269483,5.96438463,106450.0,106440.0,3.78276851]
[1750408269960,5.97377871,106450.0,106440.0,3.77446364]
[1750408270436,5.97377871,106450.0,106440.0,3.75567469]
[1750408270675,5.97377871,106450.0,106440.0,3.76506921]
[1750408270922,5.97377871,106450.0,106440.0,3.77446364]
[1750408271896,5.96438463,106450.0,106440.0,3.78385798]
[1750408272141,5.96438499,106450.0,106440.0,3.75547522]
[1750408272384,6.30438499,106450.0,106440.0,3.59483522]
[1750408272623,6.30438499,106450.0,106440.0,3.76495]
[1750408273130,6.39541688,106450.0,106440.0,3.38705611]
[1750408273364,6.39541688,106450.0,106440.0,3.54773611]
[1750408273611,5.99528849,106450.0,106440.0,3.54773611]
[1750408273858,6.39541688,106450.0,106440.0,3.54773611]
[1750408274996,6.39541688,106450.0,106440.0,3.35635611]
[1750408275213,6.35223688,106450.0,106440.0,3.35635611]
[1750408275433,7.50492527,106450.0,106440.0,3.32575611]
[1750408275667,7.67868527,106450.0,106440.0,3.32575611]
[1750408275890,7.18048527,106450.0,106440.0,3.32575611]
[1750408276106,7.18048527,106450.0,106440.0,2.94737049]
[1750408276341,7.18048527,106450.0,106440.0,2.94637049]
[1750408276552,7.18048527,106450.0,106440.0,2.94237049]
[1750408276991,7.18048527,106450.0,106440.0,2.94337049]
[1750408277207,7.18048527,106450.0,106440.0,2.94237049]
[1750408277423,7.23044527,106450.0,106440.0,2.94237049]
[1750408277675,7.23044527,106450.0,106440.0,2.92335763]
[1750408277902,7.23044527,106450.0,106440.0,2.88407167]
[1750408278125,7.32938527,106450.0,106440.0,2.88407167]
[1750408278352,7.32938527,106450.0,106440.0,2.71062906]
[1750408278780,7.33138527,106450.0,106440.0,2.50568605]
[1750408279455,7.33238527,106450.0,106440.0,2.50568605]
[1750408279878,7.33238527,106450.0,106440.0,2.47484769]
[1750408280092,7.23344527,106450.0,106440.0,2.47484769]
[1750408280526,7.23292527,106450.0,106440.0,2.47484769]
[1750408280740,7.23292527,106450.0,106440.0,2.46758883]
[1750408281372,7.02816527,106450.0,106440.0,2.29414622]
[1750408281585,7.23288527,106450.0,106440.0,2.29414622]
[1750408281796,7.23288527,106450.0,106440.0,2.08920321]
[1750408282013,7.23284527,106450.0,106440.0,2.08920321]
[1750408284203,7.23284527,106450.0,106440.0,1.9157606]
[1750408284872,6.99964442,106450.0,106440.0,1.71081759]
[1750408285092,6.59355603,106450.0,106440.0,1.77611759]
[1750408285328,6.75423603,106450.0,106440.0,1.77611759]
[1750408285558,6.81877688,106450.0,106440.0,1.77611759]
[1750408285794,6.80423603,106450.0,106440.0,1.77611759]
[1750408286263,6.59951603,106450.0,106440.0,1.77611759]
[1750408286526,6.81877688,106450.0,106440.0,1.77611759]
[1750408287294,6.56405688,106450.0,106440.0,1.77611759]
[1750408287754,5.822215,106450.0,106440.0,2.13401183]
[1750408287978,6.56234339,106450.0,106440.0,2.1434067]
[1750408288194,6.55294984,106450.0,106440.0,1.9828067]
[1750408288423,6.54355603,106450.0,106440.0,1.93671759]
[1750408288638,6.54155603,106450.0,106440.0,1.93671759]
[1750408289122,6.14142764,106450.0,106440.0,1.93671759]
[1750408289358,6.54155603,106450.0,106440.0,1.93671759]
[1750408290080,6.54155603,106450.0,106440.0,1.93780759]
[1750408290318,6.54055603,106450.0,106440.0,1.93780759]
[1750408290564,6.54055603,106450.0,106440.0,1.93880759]
[1750408290803,6.54055603,106450.0,106440.0,1.93780759]
[1750408291037,6.54055603,106450.0,106440.0,1.93880759]
[1750408291279,6.54055603,106450.0,106440.0,1.78011759]
[1750408291494,6.54055603,106450.0,106440.0,1.94067759]
[1750408291912,6.54055603,106450.0,106440.0,1.94176759]
[1750408292148,6.54055603,106450.0,106440.0,1.94068759]
[1750408292634,6.54055603,106450.0,106440.0,1.94064759]
[1750408292844,6.54055603,106450.0,106440.0,1.93764759]
[1750408293072,6.54055603,106450.0,106440.0,1.93864759]
[1750408293728,6.54055603,106450.0,106440.0,1.93755759]
[1750408294184,6.54055603,106450.0,106440.0,1.77711759]
[1750408294427,6.54055603,106450.0,106440.0,1.93751759]
[1750408294650,6.55509688,106450.0,106440.0,1.93751759]
[1750408297221,7.05329688,106450.0,106440.0,1.93751759]
[1750408297449,6.65316849,106450.0,106440.0,1.93751759]
[1750408297666,7.05329688,106450.0,106440.0,1.93751759]
[1750408297891,6.63862764,106450.0,106440.0,1.77711759]
[1750408298115,6.63862764,106450.0,106440.0,1.93707759]
[1750408298335,7.03875603,106450.0,106440.0,1.77711759]
[1750408298545,6.63862764,106450.0,106440.0,1.93715759]
[1750408298792,7.03875603,106450.0,106440.0,1.93715759]
[1750408299480,6.63862764,106450.0,106440.0,1.93715759]
[1750408299698,7.03875603,106450.0,106440.0,1.93715759]
[1750408299908,6.63862764,106450.0,106440.0,1.93715759]
[1750408300358,6.59458764,106450.0,106440.0,1.93824759]
[1750408300586,6.63862764,106450.0,106440.0,1.93824759]
[1750408301036,6.95933261,106450.0,106440.0,1.93824759]
[1750408301688,6.63862764,106450.0,106440.0,1.93824759]
[1750408301953,6.95933261,106450.0,106440.0,1.93824759]
[1750408302399,6.91529261,106450.0,106440.0,1.93824759]
[1750408302644,6.95933261,106450.0,106440.0,1.93824759]
[1750408303975,6.59458764,106450.0,106440.0,2.12614687]
[1750408304215,6.95933261,106450.0,106440.0,1.93824759]
[1750408305516,6.95933261,106450.0,106440.0,1.93824759]
[1750408306831,6.95933261,106450.0,106440.0,2.12614687]
[1750408307060,6.95933261,106450.0,106440.0,1.93824759]
[1750408308202,6.91529261,106450.0,106440.0,1.93824759]
[1750408308382,6.63862764,106450.0,106440.0,2.14493635]
[1750408308624,6.63862764,106450.0,106440.0,2.14493652]
[1750408308831,6.95933261,106450.0,106440.0,2.14493652]
[1750408309034,6.91529261,106450.0,106440.0,2.14493652]
[1750408309233,6.95933261,106450.0,106440.0,2.14493652]
[1750408309437,6.91529261,106450.0,106440.0,2.14493652]
[1750408309681,6.95933261,106450.0,106440.0,2.15433113]
[1750408309888,6.93407988,106450.0,106440.0,2.15433113]
[1750408310098,6.61337491,106450.0,106440.0,2.15433113]
[1750408310314,6.97811988,106450.0,106440.0,2.16372556]
[1750408310527,6.98687396,106450.0,106440.0,2.15433113]
[1750408310735,6.98687396,106450.0,106440.0,2.16372565]
[1750408311126,6.97748041,106450.0,106440.0,2.16372565]
[1750408311327,6.97747962,106450.0,106440.0,2.16372565]
[1750408311534,6.65677465,106450.0,106440.0,2.16372565]
[1750408311744,6.97747962,106450.0,106440.0,2.16372565]
[1750408312172,6.96808607,106450.0,106440.0,2.15433113]
[1750408312384,6.96808607,106450.0,106440.0,2.14493652]
[1750408312600,6.95869243,106450.0,106440.0,2.15433121]
[1750408312809,6.79869243,106450.0,106440.0,2.15433121]
[1750408313040,6.79869243,106450.0,106440.0,2.16372582]
[1750408313244,6.47798746,106450.0,106440.0,2.16372582]
[1750408313452,6.79869243,106450.0,106440.0,2.16372582]
[1750408314286,6.79869243,106450.0,106440.0,1.77820759]
[1750408314494,6.79869243,106450.0,106440.0,1.93764759]
[1750408314701,6.79869243,106450.0,106440.0,2.12554687]
[1750408314908,6.79869243,106450.0,106440.0,1.93764759]
[1750408315122,6.79869243,106450.0,106440.0,2.12554687]
[1750408315330,6.47798746,106450.0,106440.0,2.12554687]
[1750408315538,6.47798746,106450.0,106440.0,2.13490165]
[1750408315755,6.79869243,106450.0,106440.0,2.12550687]
[1750408315961,6.79869243,106450.0,106440.0,1.93760759]
[1750408316177,6.79869243,106450.0,106440.0,1.93655759]
[1750408318113,6.85869243,106450.0,106440.0,1.93655759]
[1750408318529,6.87748015,106450.0,106440.0,1.93643759]
[1750408318740,6.86808651,106450.0,106440.0,1.93643759]
[1750408319172,6.86808651,106450.0,106440.0,1.93639759]
[1750408319988,7.20333233,106450.0,106440.0,1.77711759]
[1750408320194,6.88262736,106450.0,106440.0,1.93639759]
[1750408323724,6.92838233,106450.0,106440.0,1.71181759]
[1750408324985,6.97838233,106450.0,106440.0,1.71181759]
[1750408325626,6.98038233,106450.0,106440.0,1.71181759]
[1750408325985,6.96758233,106450.0,106440.0,1.71181759]
[1750408326954,6.96758233,106450.0,106440.0,1.71081759]
[1750408327244,6.96858233,106450.0,106440.0,1.71081759]
[1750408327885,6.98138233,106450.0,106440.0,1.71081759]
[1750408328109,6.98138233,106450.0,106440.0,1.31578097]
[1750408328326,5.61126827,106420.0,106410.0,0.0609]
[1750408328590,5.61126827,106420.0,106410.0,0.22015016]
[1750408328591,6.02725217,106420.0,106410.0,0.22015016]
[1750408328832,6.07065217,106420.0,106410.0,0.22015016]
[1750408329061,6.09888917,106420.0,106410.0,0.22015016]
[1750408329311,6.10832509,106420.0,106410.0,0.22015016]
[1750408329946,6.10832509,106420.0,106410.0,0.22124016]
[1750408330164,6.10832509,106420.0,106410.0,0.22524016]
[1750408330379,6.10832509,106420.0,106410.0,0.22532016]
[1750408330593,6.10832509,106420.0,106410.0,0.22732016]
[1750408331488,6.10832509,106420.0,106410.0,0.22623016]
[1750408331701,6.10832509,106420.0,106410.0,0.06699016]
[1750408332413,6.10832509,106420.0,106410.0,0.22603016]
[1750408333050,6.42903006,106420.0,106410.0,0.06699016]
[1750408333278,6.10832509,106420.0,106410.0,0.06699016]
[1750408333500,6.42903006,106420.0,106410.0,0.06299016]
[1750408333730,6.42903006,106420.0,106410.0,0.06099016]
[1750408333962,6.10832509,106420.0,106410.0,0.06299016]
[1750408334782,6.42903006,106420.0,106410.0,0.06299016]
[1750408334991,6.43016006,106420.0,106410.0,0.06299016]
[1750408335696,6.10945509,106420.0,106410.0,0.06299016]
[1750408336126,6.10832509,106420.0,106410.0,0.06299016]
[1750408337226,6.10932509,106420.0,106410.0,0.06099016]
[1750408337716,6.10832509,106420.0,106410.0,0.06099016]
[1750408338203,5.77307927,106420.0,106410.0,0.06299016]
[1750408338444,6.09378424,106420.0,106410.0,0.06299016]
[1750408340117,6.09378424,106420.0,106410.0,0.06517016]
[1750408340358,6.05038424,106420.0,106410.0,0.06517016]
[1750408340569,6.09378424,106420.0,106410.0,0.06517016]
[1750408341695,6.05038424,106420.0,106410.0,0.06517016]
[1750408341914,5.4894255,106420.0,106410.0,0.27191719]
[1750408342130,5.13063293,106420.0,106410.0,0.29071135]
[1750408342347,5.49882143,106420.0,106410.0,0.29071135]
[1750408342555,5.48942506,106420.0,106410.0,0.29071135]
[1750408343002,5.461237,106420.0,106410.0,0.29071135]
[1750408343215,5.42763293,106420.0,106410.0,0.29071135]
[1750408343436,5.47063293,106420.0,106410.0,0.44967135]
[1750408343644,5.48002895,106420.0,106410.0,0.44967135]
[1750408343859,5.49882134,106420.0,106410.0,0.44967135]
[1750408344085,5.50821789,106420.0,106410.0,0.44967135]
[1750408344302,5.46521789,106420.0,106410.0,0.44967135]
[1750408344532,5.50821789,106420.0,106410.0,0.44967135]
[1750408344777,5.82892286,106420.0,106410.0,0.44967135]
[1750408345202,5.81952631,106420.0,106410.0,0.44967135]
[1750408345833,5.49882134,106420.0,106410.0,0.44967135]
[1750408346267,5.48942506,106420.0,106410.0,0.44967135]
[1750408346484,5.50821771,106420.0,106410.0,0.44967135]
[1750408346696,5.49882134,106420.0,106410.0,0.44967135]
[1750408347326,6.01685815,106420.0,106410.0,0.44027454]
[1750408347538,5.50821842,106420.0,106410.0,0.45906861]
[1750408347751,6.00746249,106420.0,106410.0,0.42123976]
[1750408348203,5.99806621,106420.0,106410.0,0.43063737]
[1750408348636,5.33736124,106420.0,106410.0,0.43063737]
[1750408348856,5.65806621,106420.0,106410.0,0.27082737]
[1750408349066,5.42324371,106420.0,106410.0,0.26143003]
[1750408349273,5.28496478,106420.0,106410.0,0.43886489]
[1750408349487,5.28496478,106420.0,106410.0,0.45765896]
[1750408349488,5.14002983,106420.0,106410.0,0.45765896]
[1750408349702,5.47013082,106420.0,106410.0,0.45765896]
[1750408349940,5.14942576,106420.0,106410.0,0.45765896]
[1750408350147,5.47013073,106420.0,106410.0,0.45765896]
[1750408350394,5.47952728,106420.0,106410.0,0.45765896]
[1750408351309,5.48892392,106420.0,106410.0,0.46065896]
[1750408351517,5.48892392,106420.0,106410.0,0.45865896]
[1750408351948,5.47952728,106420.0,106410.0,0.46665896]
[1750408352648,5.13063302,106420.0,106410.0,0.46665896]
[1750408352850,5.14002939,106420.0,106410.0,0.46665896]
[1750408353064,5.15882205,106420.0,106410.0,0.46665896]
[1750408353308,5.1494255,106420.0,106410.0,0.30801896]
[1750408353553,5.47013047,106420.0,106410.0,0.46649896]
[1750408353734,5.47952702,106420.0,106410.0,0.46649896]
[1750408354391,5.43652702,106420.0,106410.0,0.46649896]
[1750408354634,5.15882205,106420.0,106410.0,0.46649896]
[1750408354867,5.47952702,106420.0,106410.0,0.46649896]
[1750408355342,5.42713047,106420.0,106410.0,0.46649896]
[1750408355635,5.47952693,106420.0,106410.0,0.46649896]
[1750408357938,5.16821851,106420.0,106410.0,0.46661896]
[1750408358145,5.48892348,106420.0,106410.0,0.46661896]
[1750408358360,5.4889241,106420.0,106410.0,0.46661896]
[1750408358573,5.16821913,106420.0,106410.0,0.46661896]
[1750408359018,5.4889241,106420.0,106410.0,0.46661896]
[1750408359442,5.16821913,106420.0,106410.0,0.46661896]
[1750408359877,5.47952746,106420.0,106410.0,0.46661896]
[1750408360097,5.14002948,106420.0,106410.0,0.46661896]
[1750408360323,0.028237,106420.0,106410.0,0.46661896]
[1750408360564,0.08063293,106420.0,106410.0,0.46657896]
[1750408360781,0.071237,106420.0,106410.0,0.46657896]
[1750408361006,0.08063302,106420.0,106410.0,0.46657896]
[1750408361227,0.071237,106420.0,106410.0,0.46657896]
[1750408362103,0.071237,106420.0,106410.0,0.30801896]
[1750408362313,0.09002922,106420.0,106410.0,0.46657896]
[1750408362519,0.08063302,106420.0,106410.0,0.46657896]
[1750408362731,0.09002913,106420.0,106410.0,0.46657896]
[1750408362940,0.40133799,106420.0,106410.0,0.46657896]
[1750408363262,0.08063302,106420.0,106410.0,0.46657896]
[1750408363475,0.0900293,106420.0,106410.0,0.46657896]
[1750408364118,0.09942576,106420.0,106410.0,0.46657896]
[1750408364328,0.42013073,106420.0,106410.0,0.46657896]
[1750408364756,0.071237,106420.0,106410.0,0.46657896]
[1750408365846,0.08063293,106420.0,106410.0,0.46657896]
[1750408366065,0.4013379,106420.0,106410.0,0.46657896]
[1750408366485,0.4013379,106420.0,106410.0,0.46661896]
[1750408368242,0.4201302,106420.0,106410.0,0.46661896]
[1750408368470,0.62685797,106420.0,106410.0,0.29862197]
[1750408368692,5.65806602,106420.0,106410.0,0.41955242]
[1750408368907,5.65806602,106420.0,106410.0,0.42894976]
[1750408369131,5.63927328,106420.0,106410.0,0.43834728]
[1750408369351,5.31856831,106420.0,106410.0,0.43834728]
[1750408369570,5.63927328,106420.0,106410.0,0.43834728]
[1750408369991,5.31856831,106420.0,106410.0,0.43834728]
[1750408370198,5.63927328,106420.0,106410.0,0.43834728]
[1750408370410,5.63927328,106420.0,106410.0,0.27982728]
[1750408370631,5.63927328,106420.0,106410.0,0.43822728]
[1750408371733,5.63927328,106420.0,106410.0,0.44762453]
[1750408372161,5.63927328,106420.0,106410.0,0.4570217]
[1750408372586,5.79927328,106420.0,106410.0,0.4570217]
[1750408373323,5.61133817,106420.0,106410.0,0.46641825]
[1750408373536,5.470131,106420.0,106410.0,0.46641825]
[1750408373974,5.14942603,106420.0,106410.0,0.46641825]
[1750408374190,5.47952693,106420.0,106410.0,0.46641825]
[1750408374399,5.47952693,106420.0,106410.0,0.30801825]
[1750408374614,5.47952693,106420.0,106410.0,0.46629825]
[1750408375108,5.48892357,106420.0,106410.0,0.46629825]
[1750408375323,5.47952693,106420.0,106410.0,0.46629825]
[1750408375532,5.15882196,106420.0,106410.0,0.46629825]
[1750408375746,5.47952693,106420.0,106410.0,0.46629825]
[1750408376161,5.078237,106420.0,106410.0,0.46629825]
[1750408376386,0.070797,106420.0,106410.0,0.48847227]
[1750408377048,0.39150197,106420.0,106410.0,0.48847227]
[1750408378085,0.070797,106420.0,106410.0,0.48847227]
[1750408378341,0.39150197,106420.0,106410.0,0.48847227]
[1750408378728,0.4008979,106420.0,106410.0,0.48847227]
[1750408378944,0.51496975,106420.0,106410.0,0.28320644]
[1750408379162,0.5055732,106420.0,106410.0,0.43782693]
[1750408379364,0.19426469,106420.0,106410.0,0.44722418]
[1750408379588,0.41029427,106420.0,106410.0,0.44722418]
[1750408379793,0.41969073,106420.0,106410.0,0.44722418]
[1750408380211,0.10838231,106420.0,106410.0,0.44722418]
[1750408380647,0.42908728,106420.0,106410.0,0.28922418]